Cogmind - Beta 13 @@@ ROGUE MODE // 2024.04.04 @ 12:01:46 Player: Devilhunter10 Result: Destroyed by Y-45 Defender with Heavy Assault Rifle Performance ------------- Evolutions (1) 500 Regions Visited (3) 600 Robots Destroyed (6) 30 Value Destroyed (217) 217 Prototype IDs (0) 0 Alien Tech Used (0) 0 Bonus (0) 0 TOTAL SCORE: 1347 Bonus ------- None Cogmind --------- Core Integrity 0/400 Matter 283/300 Energy 92/100 System Corruption 0% Temperature Danger (402) Movement Core (50) Location -9/Materials Parts ------- > --- POWER (1) -------- (None) > --- PROPULSION (3) --- (None) > --- UTILITY (3) ------ (None) > --- WEAPON (2) ------- (None) > --- INVENTORY (5) ---- Aluminum Leg Compact Matter Pod (150) Small Laser Beam Rifle Beam Rifle Peak State ------------ > --- POWER ------------ Light Nuclear Core > --- PROPULSION ------- Light Treads Light Treads > --- UTILITY ---------- Small Storage Unit > --- WEAPON ----------- Beam Rifle Beam Rifle > --- INVENTORY -------- Aluminum Leg Compact Matter Pod Small Laser [Rating: 10] Favorites ----------- Power Ion Engine Engine Ion Engine Power Core Light Nuclear Core Propulsion Aluminum Leg Treads Light Treads Leg Aluminum Leg Utility Small Storage Unit Storage Small Storage Unit Weapon Medium Laser Energy Gun Medium Laser Build | -11 -10 -10 -9 ------- Run | Yrd Mat Min Mat Slots Evolved 2 | . . . 2 Power . | . . . . Propulsion 1 | . . . 1 Utility 1 | . . . 1 Weapon . | . . . . Parts Attached 14 | 6 1 5 2 Power 3 | 1 1 1 . Engine 2 | 1 1 . . Core 1 | . . 1 . Reactor . | . . . . Propulsion 4 | 2 . 2 . Treads 2 | . . 2 . Leg 2 | 2 . . . Wheel . | . . . . Hover . | . . . . Flight . | . . . . Utility 1 | 1 . . . Device . | . . . . Storage 1 | 1 . . . Processor . | . . . . Hackware . | . . . . Protection . | . . . . Artifact . | . . . . Weapon 6 | 2 . 2 2 Energy Gun 6 | 2 . 2 2 Energy Cannon . | . . . . Ballistic Gun . | . . . . Ballistic Cannon . | . . . . Launcher . | . . . . Special Weapon . | . . . . Impact Weapon . | . . . . Slashing Weapon . | . . . . Piercing Weapon . | . . . . Special Melee Weapon . | . . . . Unidentified Prototypes . | . . . . Parts Lost 13 | . 1 6 6 Power 3 | . 1 1 1 Propulsion 4 | . . 2 2 Utility 1 | . . . 1 Weapon 5 | . . 3 2 Highest Loss Streak 6 | . 1 6 6 To Critical Strikes . | . . . . Average Slot Usage (%) 73 | . 85 78 56 Engine 8 | . 14 12 . Core 3 | . . . 10 Treads 6 | . . . 20 Leg 17 | . 28 22 . Storage 12 | . 14 14 10 Energy Gun 23 | . 28 28 15 Naked Turns 6 | . . . 6 Heaviest Build 16 | 12 14 14 16 Greatest Support 40 | 20 20 40 40 Greatest Overweight (x) 3 | 1 . 3 . Average Overweight (x) . | . . . . Largest Inventory Capacity 8 | 8 8 8 8 Average Capacity 7 | 7 8 8 7 Most Carried 7 | 6 6 7 5 Average Carried 4 | 3 4 5 3 Final Capacity 8 | 8 8 8 5 Final Carried 6 | 4 6 2 5 Class Distribution -------------------- 100% | Mutant Dominant Class ---------------- Mutant | -10/Materials Mutant | -10/Mines Mutant | -9/Materials Resources | -11 -10 -10 -9 ----------- Run | Yrd Mat Min Mat Matter Collected 400 | 227 97 76 . Remotely . | . . . . Salvage Created 270 | . 97 136 37 Parts 7 | . 2 4 1 Haulers Intercepted . | . . . . Recyclers Shooed . | . . . . Parts Field Recycled . | . . . . Retrieved Matter . | . . . . Parts Self-Destructed . | . . . . Prevented . | . . . . Kills | -11 -10 -10 -9 ------- Run | Yrd Mat Min Mat Combat Hostiles Destroyed 6 | . 2 3 1 Guns 5 | . 1 3 1 Classes Destroyed 1 | . 1 . . Grunt 6 | . 2 3 1 Best Kill Streak 2 | . 1 2 1 Combat Bots Only 2 | . 1 2 1 Max Kills in Single Turn 1 | . 1 1 1 Gunslinging . | . . . . Exploded . | . . . . Melee . | . . . . Uniques/NPCs Destroyed . | . . . . Combat | -11 -10 -10 -9 -------- Run | Yrd Mat Min Mat Hostile Shots Fired 147 | . 25 58 64 Missed 28 | . 7 13 8 Damage Taken 1625 | . 257 499 869 Core 558 | . 57 93 408 Absorbed by Shields . | . . . . Core Remaining (%) 70 | 100 . 40 . Volleys Fired 37 | . 12 13 12 Largest 2 | . 2 2 2 Hottest 112 | . 100 100 112 Shots Fired 69 | . 24 25 20 Gun 69 | . 24 25 20 Cannon . | . . . . Launcher . | . . . . Special . | . . . . Kinetic . | . . . . Thermal 69 | . 24 25 20 Explosive . | . . . . Electromagnetic . | . . . . Robot Hit Streak 15 | . 6 4 15 Robot Miss Streak 3 | . 1 3 1 Penetration Max . | . . . . Secondary Targets . | . . . . Shots Hit Robots 51 | . 19 13 19 Core Hits 16 | . 4 6 6 Critical Kills . | . . . . Critical Parts Destroyed . | . . . . Critical Strikes 3 | . 1 1 1 Burn 3 | . 1 1 1 Melee Attacks . | . . . . Impact . | . . . . Slashing . | . . . . Piercing . | . . . . Sneak Attacks . | . . . . Combat Hostiles . | . . . . Follow-up Attacks . | . . . . Damage Inflicted 711 | . 235 189 287 Guns 696 | . 235 189 272 Cannons . | . . . . Explosions . | . . . . Melee . | . . . . Ramming 15 | . . . 15 Kinetic . | . . . . Thermal 696 | . 235 189 272 Explosive . | . . . . Electromagnetic . | . . . . Impact . | . . . . Slashing . | . . . . Piercing . | . . . . Highest Corruption . | . . . . Average Corruption . | . . . . Corruption Purged . | . . . . Corruption Blocked . | . . . . Overload Shots . | . . . . Overflow Damage . | . . . . Projectiles . | . . . . Explosions . | . . . . Melee . | . . . . Knockbacks . | . . . . Impact . | . . . . Kinetic . | . . . . Secondary . | . . . . Self-Inflicted Damage 7 | . . . 7 Shots . | . . . . Rammed 6 | . . . 6 Targets Rammed 6 | . . . 6 Kicked . | . . . . Crushed . | . . . . Highest Temperature 636 | . 410 372 636 Average Temperature 252 | . 218 206 376 Received Heat Transfer 807 | . 168 264 375 Effects 20 | . 2 2 16 Shutdowns 2 | . . . 2 Energy Bleed 5 | . 2 . 3 Matter Decay 2 | . . 1 1 Short Circuit 1 | . . . 1 Damage (minor) 3 | . . 1 2 Damage (major) 5 | . . . 5 Damage (core) 2 | . . . 2 Siege Activations . | . . . . Robots Corrupted . | . . . . Combat Hostiles . | . . . . Parts Fried . | . . . . Impact Corruptions . | . . . . Robots Melted 1 | . 1 . . Combat Hostiles 1 | . 1 . . Parts Melted 6 | . 3 1 2 Heat Transferred 2124 | . 777 570 777 Parts Sabotaged . | . . . . Parts Stolen . | . . . . Parts Stripped . | . . . . Power Chain Reactions . | . . . . Alert | -11 -10 -10 -9 ------- Run | Yrd Mat Min Mat Peak Influence 81 | . 81 51 31 Initial 31 | . . 31 11 Average 25 | . 38 33 13 Maximum Alert Level . | . . . . Low Security (%) 100 | 100 100 100 100 Level 1 . | . . . . Level 2 . | . . . . Level 3 . | . . . . Level 4 . | . . . . Level 5 . | . . . . High Security . | . . . . Max Security . | . . . . Squads Dispatched . | . . . . Investigation . | . . . . Extermination . | . . . . Reinforcement . | . . . . Assault . | . . . . Garrison . | . . . . Intercept . | . . . . Searches Triggered . | . . . . Construction Impeded . | . . . . Haulers Reinforced . | . . . . Active Scanning Responses . | . . . . Cargo Convoy Interrupts . | . . . . Stealth | -11 -10 -10 -9 --------- Run | Yrd Mat Min Mat Distress Signals . | . . . . Communications Jammed . | . . . . Distress Signals . | . . . . Times Spotted 16 | . 6 5 5 Peak Tracking Total 4 | . 2 3 4 Tactical Retreats 1 | . 1 . . Traps | -11 -10 -10 -9 ------- Run | Yrd Mat Min Mat Traps Triggered 1 | . . . 1 Indirectly . | . . . . Trap Hack Attempts . | . . . . Triggered . | . . . . Disarmed . | . . . . Reprogrammed . | . . . . Reused . | . . . . Traps Extracted . | . . . . Installed . | . . . . Triggered . | . . . . Machines | -11 -10 -10 -9 ---------- Run | Yrd Mat Min Mat Machines Disabled . | . . . . Max in Single Turn . | . . . . Machines Repaired . | . . . . Machines Dismantled . | . . . . Machines Sabotaged . | . . . . Overloaded Fab Kills . | . . . . Hacking | -11 -10 -10 -9 --------- Run | Yrd Mat Min Mat Machines Accessed 3 | . 2 . 1 Terminals 3 | . 2 . 1 Fabricators . | . . . . Repair Stations . | . . . . Recycling Units . | . . . . Scanalyzers . | . . . . Garrison Access . | . . . . Total Hacks 7 | . 4 . 3 Successful 4 | . 3 . 1 Failed 3 | . 1 . 2 Catastrophic 1 | . . . 1 Database Lockouts . | . . . . Manual 4 | . 1 . 3 Terminals 7 | . 4 . 3 Fabricators . | . . . . Repair Stations . | . . . . Recycling Units . | . . . . Scanalyzers . | . . . . Garrison Access . | . . . . Terminal Hacks 4 | . 3 . 1 Terminal Index 1 | . 1 . . Hauler Manifests 1 | . 1 . . Zone Layout 2 | . 1 . 1 Fabricator Hacks . | . . . . Repair Station Hacks . | . . . . Recycling Unit Hacks . | . . . . Scanalyzer . | . . . . Garrison Access Hacks . | . . . . Unauthorized Hacks . | . . . . Terminals . | . . . . Fabricators . | . . . . Repair Stations . | . . . . Recycling Units . | . . . . Scanalyzers . | . . . . Garrison Access . | . . . . Data Cores Recovered . | . . . . Used . | . . . . Hacking Detections 3 | . 2 . 1 Full Trace Events . | . . . . Feedback Events . | . . . . Feedback Blocked . | . . . . Robot Schematics Acquired . | . . . . Robots Built . | . . . . Authchips . | . . . . Time . | . . . . Total Robot Build Rating . | . . . . Part Schematics Acquired . | . . . . Parts Built . | . . . . Authchips . | . . . . Time . | . . . . Total Part Build Rating . | . . . . Parts Repaired . | . . . . Time . | . . . . Parts Recycled . | . . . . Recycled Matter . | . . . . Retrieved Matter . | . . . . Retrieved Components . | . . . . Parts Scanalyzed . | . . . . Part Schematics Acquired . | . . . . Parts Damaged . | . . . . Bothacking | -11 -10 -10 -9 ------------ Run | Yrd Mat Min Mat Used RIF Installer . | . . . . Robots Hacked . | . . . . Non-combat . | . . . . Combat . | . . . . Robot Hacks Applied . | . . . . Relay Couplers Released . | . . . . Fabnet Peak Effective % . | . . . . Robots Rewired . | . . . . Allies Hacked . | . . . . Hacks Repelled . | . . . . Allies | -11 -10 -10 -9 -------- Run | Yrd Mat Min Mat Total Allies . | . . . . Largest Group . | . . . . Highest-Rated Group . | . . . . Highest-Rated Ally . | . . . . Total Orders . | . . . . Ally Attacks . | . . . . Total Damage . | . . . . Kills . | . . . . Allies Corrupted . | . . . . Allies Melted . | . . . . Intel | -11 -10 -10 -9 ------- Run | Yrd Mat Min Mat Robot Analysis Total . | . . . . Derelict Logs Recovered . | . . . . Drone Launches . | . . . . Drone Recoveries . | . . . . Exploration | -11 -10 -10 -9 ------------- Run | Yrd Mat Min Mat Turns Passed 534 | 60 169 158 147 Spaces Moved 287 | 49 108 66 64 Core 40 | 22 . 7 11 Treads 58 | . . 5 53 Legs 189 | 27 108 54 . Wheels . | . . . . Hover . | . . . . Flight . | . . . . Fastest Speed 50 | 50 120 120 50 Average Speed 121 | 92 120 126 141 Slowest Speed 200 | 120 120 200 160 Overloaded Moves . | . . . . Propulsion Burnouts . | . . . . Robots Hopped . | . . . . Cave-ins Triggered . | . . . . Exploration Rate (%) 12 | 3 24 17 6 Regions Visited 3 Branch Regions 1 Pre-discovered Areas . | . . . . Known Exits Taken . | . . . . Unknown Exits Taken 3 | 1 1 1 . Scrap Searched . | . . . . Spaces Dug . | . . . . Terrain Destroyed . | . . . . Melee . | . . . . Projectile . | . . . . AOE . | . . . . Terrain Rammed . | . . . . Walls Destroyed . | . . . . Machines Disabled . | . . . . Actions | -11 -10 -10 -9 --------- Run | Yrd Mat Min Mat Total 402 | 63 123 116 100 Wait 42 | . . 30 12 Move 284 | 48 107 65 64 Hop . | . . . . Pick Up 18 | 9 3 2 4 Fast Attach 1 | 1 . . . Attach 12 | 5 1 5 1 Detach . | . . . . Swap 1 | . . . 1 Drop 1 | . . 1 . Fire 37 | . 12 13 12 Melee . | . . . . Ram 6 | . . . 6 Kick . | . . . . Crush . | . . . . Escape Stasis . | . . . . Rewire . | . . . . Trap . | . . . . Miscellaneous . | . . . . Route ------- -11/Scrapyard -10/Materials (discovered 2 exits: Mat / [*Min]) -10/Mines -9/Materials History --------- Turn | Location | Event 5 | -11/Scrapyard | Discovered new exit (range 15) 61 | -11/Scrapyard | Entered Materials 105 | -10/Materials | Discovered new exit (range 9) 206 | -10/Materials | Discovered new exit (range 13) 230 | -10/Materials | Entered Mines 237 | -10/Mines | Met a Derelict bent on vengeance 268 | -10/Mines | Discovered new exit (range 13) 289 | -10/Mines | Excavation squad dispatched 289 | -10/Mines | A large section of the Mines collapsed 316 | -10/Mines | Build established: Mutant 367 | -10/Mines | Core integrity fell below 50% 388 | -10/Mines | Entered Materials 388 | -9/Materials | Evolved 2 slots: Propulsion x1, Utility x1 416 | -9/Materials | Lost 6 parts (1p2n3w) 523 | -9/Materials | Core integrity fell below 50% 529 | -9/Materials | Core integrity fell below 20% 535 | -9/Materials | Destroyed by Y-45 Defender with Heavy Assault Rifle Last Messages --------------- 00523_ Lgt. Nuclear Core destroyed. 00523_ Slammed into G-47 Trooper. 00523_ Broken Lgt. Treads destroyed. 00524_ Overheating: Core damaged (-52). 00524_ Slammed into Y-45 Defender. 00525_ Overheating: Sml. Storage Unit damaged (-8). 00526_ Slammed into Y-45 Defender. 00527_ G-47 Trooper heat short circuits Lgt. Nuclear Core. 00527_ Slammed into Y-45 Defender. 00528_ Overheating: Sml. Storage Unit damaged (-2). 00528_ Critical hit (Burn: +37). 00528_ Slammed into Y-45 Defender. 00529_ Overheating: Sml. Storage Unit damaged (-1). 00529_ Sml. Storage Unit destroyed. 00531_ Slammed into Y-45 Defender. 00534_ Overheating: Energy bleed (-10). Map ----- +----------------------------------------------------+ | ????????????????????????????????? | | ????????????????????????????????? | | ????????????????????????????????? | | ????????????????????????????????? | | ????????????????????????????????? | | ????????????????????????????????? | | ????????????????????????????????? | | ????????????????????????????????? | | ????????????????????????????????? | | ????????????????????????????????? | | ????????????????????????????????? | | ????????????????????????????????? | | ????????????????????????????????? | | ????????????????????????????????? | | ????????????????????????????????? | | ??????################## ???????? | | ??????# ??????? | | ??????# ??????? | | ??????# ??????? | | ??????#g %#########?????????????? | | ####### #?????#???????????????? | | # # #?????#???????????????? | | # = # g#?????#???????????????? | | # # #?????#???????????????? | | # # Y #?????#???????????????? | | # # @ #?????#???????????????? | | # + #????##???????????????? | | # # #????# ???????????????? | | # # ##???# ???????????????? | | #" # ##???# ???????????????? | | #T # ##???#"???????????????? | | #" # ##???#"???????????????? | | # # ##???#"???????????????? | | ####### ##???# ???????????????? | | ?????## %##?### ???????????????? | | ??????# #### # ???????????????? | | ??????# # ##???????????????? | | ??????# #"" #????????????????? | | ??????# #"" #????????????????? | | ??????# #"T ##???????????????? | | ??????# #"" + ???????????????? | | ??????# #"" # ???????????????? | | ??????# # # ???????????????? | | ####### # # ???????????????? | | #= # # # ???????????????? | | # # ###### ???????????????? | | # # #?????????????????????? | | # """ + #?????????????????????? | | # """ # #?????????????????????? | | # """ # #?????????????????????? | +----------------------------------------------------+ Best States ------------- Heat Dissipation 28 Energy Generation 14 Energy Capacity 250 Matter Stores 300 Matter Capacity 300 Sight Range 16 Terrain Scan Density 10 Evasion (%) 55 Recoil Reduction 2 Item Schematics ----------------- None Robot Schematics ------------------ None Fabricated ------------ Nothing Alien Tech Used ----------------- None Achievements -------------- None Challenges ------------ None Game ------ Seed ChainSkeletonRedirector Manual? 0 Play Time 00:08:24 Cumulative 8.7 hours Start 2024.04.04 @ 11:54:54 End 2024.04.04 @ 12:01:46 Sessions 1 Manual Loads 0 Difficulty Rogue Special Mode None Game No. 17 Rogue 17 Adventurer 0 Explorer 0 Win Type - Total 0 Types 0/0/0/0/0/0/0/0/0 Lore% 15 Gallery% 17 Achievement% 16 Wizard Run 0 Options --------- Layout 1 ASCII 0 Keyboard 0 Movement Numpad Keybinds 0 Fullscreen 1 Font 24/Terminus Map View 50x35 Zoom Use 0% Tactical HUD 1 Map Filters NONE Filters NONE Steam 1 RUN: ea5b2d71-e78a-4d92-b3a3-0d0fffb861dd